Cogmind - Beta 13 @@@ ROGUE MODE // 2024.07.07 @ 12:02:12 Player: gigi283 Result: Destroyed by G-47 Trooper with Particle Gun Performance ------------- Evolutions (2) 1000 Regions Visited (5) 1000 Robots Destroyed (47) 235 Value Destroyed (1268) 1268 Prototype IDs (0) 0 Alien Tech Used (0) 0 Bonus (27) 27 TOTAL SCORE: 3530 Bonus ------- High Alert Combat Kills 41 Friendly Fire -14 Cogmind --------- Core Integrity 0/550 Matter 80/300 Energy 265/265 System Corruption 7% Temperature Cool (66) Movement Walking (340) Ox3 Location -8/Materials Parts ------- > --- POWER (1) -------- Reinforced Ion Engine > --- PROPULSION (4) --- Titanium Leg > --- UTILITY (3) ------ High-capacity Storage Unit Signal Interpreter Makeshift Terrain Scanner > --- WEAPON (3) ------- Field Laser Light Assault Rifle > --- INVENTORY (20) --- Light Deuterium Engine Light Nuclear Core Improved Heat Sink Advanced Heat Sink Target Analyzer Armor Integrity Analyzer Hardened Medium Armor Plating Mini Grenade Launcher Mining Laser Peak State ------------ > --- POWER ------------ Reinforced Ion Engine > --- PROPULSION ------- Aluminum Leg Titanium Leg Flexi-carbon Leg > --- UTILITY ---------- Large Storage Unit Signal Interpreter Makeshift Terrain Scanner > --- WEAPON ----------- Field Laser Assault Cannon Flak Cannon > --- INVENTORY -------- Reinforced Ion Engine Light Deuterium Engine Improved Heat Sink Target Analyzer Armor Integrity Analyzer Light Assault Rifle Mini Grenade Launcher Mini Grenade Launcher Mining Laser Heavy Explosive Trap [Rating: 31] Favorites ----------- Power Reinforced Ion Engine Engine Reinforced Ion Engine Propulsion Aluminum Leg Treads Light Treads Leg Aluminum Leg Utility Signal Interpreter Device Makeshift Terrain Scanner Storage Large Storage Unit Processor Signal Interpreter Weapon Light Assault Rifle Energy Gun Shock Rifle Energy Cannon Beam Cannon Ballistic Gun Light Assault Rifle Ballistic Cannon Flak Cannon Launcher Mini Grenade Launcher Build | -11 -10 -10 -10 -9 -8 ------- Run | Yrd Mat Min Exi Min Mat Slots Evolved 4 | . . . . . 4 Power . | . . . . . . Propulsion 2 | . . . . . 2 Utility 1 | . . . . . 1 Weapon 1 | . . . . . 1 Parts Attached 36 | 7 7 3 1 3 15 Power 4 | 1 2 . . . 1 Engine 4 | 1 2 . . . 1 Core . | . . . . . . Reactor . | . . . . . . Propulsion 13 | 3 2 1 . 2 5 Treads 1 | 1 . . . . . Leg 12 | 2 2 1 . 2 5 Wheel . | . . . . . . Hover . | . . . . . . Flight . | . . . . . . Utility 6 | 1 1 1 1 . 2 Device 1 | . . . . . 1 Storage 3 | 1 . . 1 . 1 Processor 2 | . 1 1 . . . Hackware . | . . . . . . Protection . | . . . . . . Artifact . | . . . . . . Weapon 13 | 2 2 1 . 1 7 Energy Gun 5 | 1 . . . . 4 Energy Cannon 1 | . 1 . . . . Ballistic Gun 3 | 1 1 . . . 1 Ballistic Cannon 2 | . . 1 . . 1 Launcher 2 | . . . . 1 1 Special Weapon . | . . . . . . Impact Weapon . | . . . . . . Slashing Weapon . | . . . . . . Piercing Weapon . | . . . . . . Special Melee Weapon . | . . . . . . Unidentified Prototypes . | . . . . . . Parts Lost 11 | . 1 . . 1 9 Power . | . . . . . . Propulsion 5 | . . . . 1 4 Utility . | . . . . . . Weapon 6 | . 1 . . . 5 Highest Loss Streak 3 | . 1 . . 1 3 To Critical Strikes . | . . . . . . Average Slot Usage (%) 97 | . 97 100 100 99 88 Engine 13 | . 14 14 14 14 9 Leg 28 | . 28 28 28 27 28 Device 1 | . . . . . 9 Storage 13 | . 14 14 14 14 9 Processor 12 | . 13 14 14 14 9 Energy Gun 1 | . 3 . . . 6 Energy Cannon 2 | . 8 6 . . . Ballistic Gun 9 | . 14 14 14 3 1 Ballistic Cannon 9 | . . 7 14 14 7 Launcher 3 | . . . . 10 8 Naked Turns . | . . . . . . Heaviest Build 60 | 11 19 22 37 37 60 Greatest Support 47 | 20 20 20 20 30 47 Greatest Overweight (x) 3 | . . 1 1 3 3 Average Overweight (x) . | . . . 1 1 . Largest Inventory Capacity 20 | 8 8 8 15 15 20 Average Capacity 12 | 6 8 8 13 15 17 Most Carried 13 | 2 8 8 9 11 13 Average Carried 8 | . 3 7 7 10 10 Final Capacity 20 | 8 8 8 15 15 20 Final Carried 11 | 2 8 7 9 11 9 Class Distribution -------------------- 81% | Mutant 13% | Skirmisher 4% | Scavenger-Mutant Dominant Class ---------------- Mutant | -10/Materials Mutant | -10/Mines Mutant | -10/Exiles Mutant | -9/Mines Skirmisher | -8/Materials Resources | -11 -10 -10 -10 -9 -8 ----------- Run | Yrd Mat Min Exi Min Mat Matter Collected 1246 | 142 219 28 63 204 590 Remotely . | . . . . . . Salvage Created 1609 | . 398 21 117 33 1040 Parts 82 | . 28 4 3 3 44 Haulers Intercepted 2 | . 1 . . . 1 Recyclers Shooed 1 | . 1 . . . . Parts Field Recycled . | . . . . . . Retrieved Matter . | . . . . . . Parts Self-Destructed . | . . . . . . Prevented . | . . . . . . Kills | -11 -10 -10 -10 -9 -8 ------- Run | Yrd Mat Min Exi Min Mat Combat Hostiles Destroyed 38 | . 6 2 . 6 24 Guns 14 | . 6 1 . . 7 Cannons 11 | . . 1 . 3 7 AOE 13 | . . . . 3 10 Classes Destroyed 13 | . 6 . . 2 5 Worker 2 | . 1 . . . 1 Builder 1 | . . . . . 1 Hauler 2 | . 1 . . . 1 Recycler 6 | . 2 . . . 4 Watcher 2 | . 1 . . . 1 Swarmer 12 | . 3 2 . . 7 Grunt 12 | . 3 . . . 9 Brawler 2 | . . . . . 2 Duelist 2 | . . . . . 2 Sentry 1 | . . . . . 1 Demolisher 2 | . . . . 2 . Hunter 3 | . . . . . 3 Assembled 4 | . . . . 4 . Best Kill Streak 8 | . 6 2 . 3 8 Combat Bots Only 5 | . 4 2 . 3 5 Max Kills in Single Turn 2 | . 2 1 . 1 2 Gunslinging 1 | . 1 . . . . Exploded 2 | . . . . 1 2 Melee . | . . . . . . Uniques/NPCs Destroyed . | . . . . . . Combat | -11 -10 -10 -10 -9 -8 -------- Run | Yrd Mat Min Exi Min Mat Hostile Shots Fired 201 | . 42 6 . 23 130 Missed 59 | . 11 1 . 5 42 Damage Taken 2577 | . 304 49 . 315 1909 Core 646 | . 56 . . 29 561 Absorbed by Shields . | . . . . . . Regen/Repaired (Parts) 172 | . . . . . 172 Core Remaining (%) 83 | 100 . . . 66 . Volleys Fired 166 | . 44 4 10 15 93 Largest 3 | . 2 2 2 2 3 Hottest 151 | . 80 80 64 74 151 Shots Fired 337 | . 79 8 20 24 206 Gun 185 | . 64 4 10 4 103 Cannon 120 | . 15 4 10 15 76 Launcher 32 | . . . . 5 27 Special . | . . . . . . Kinetic 185 | . 44 4 20 19 98 Thermal 57 | . 15 4 . . 38 Explosive 32 | . . . . 5 27 Electromagnetic 63 | . 20 . . . 43 Robot Hit Streak 8 | . 3 4 7 6 8 Robot Miss Streak 9 | . 6 2 4 9 8 Penetration Max . | . . . . . . Secondary Targets 1 | . 1 . . . . Max Gunslinging Chain 1 | . 1 . . . . Shots Hit Robots 159 | . 33 5 15 15 91 Core Hits 117 | . 16 3 13 18 67 Critical Kills 1 | . 1 . . . . Critical Parts Destroyed . | . . . . . . Critical Strikes 3 | . 1 . . . 2 Destroy 1 | . 1 . . . . Blast 1 | . . . . . 1 Corrupt 1 | . . . . . 1 Melee Attacks . | . . . . . . Impact . | . . . . . . Slashing . | . . . . . . Piercing . | . . . . . . Sneak Attacks . | . . . . . . Combat Hostiles . | . . . . . . Follow-up Attacks . | . . . . . . Damage Inflicted 3956 | . 478 63 239 319 2857 Guns 1178 | . 266 26 57 6 823 Cannons 1287 | . 123 35 182 147 800 Explosions 1484 | . 88 . . 162 1234 Melee . | . . . . . . Ramming 7 | . 1 2 . 4 . Kinetic 1453 | . 186 26 239 153 849 Thermal 746 | . 211 35 . . 500 Explosive 1300 | . . . . 162 1138 Electromagnetic 450 | . 80 . . . 370 Impact . | . . . . . . Slashing . | . . . . . . Piercing . | . . . . . . Highest Corruption 7 | . . . . . 7 Average Corruption 7 | . . . . . 7 Corruption Purged . | . . . . . . Corruption Blocked . | . . . . . . Effects 10 | . . . . . 10 Message Errors 2 | . . . . . 2 Matter Fused 1 | . . . . . 1 Energy Discharges 2 | . . . . . 2 Data Loss (minor) 2 | . . . . . 2 Data Loss (major) 1 | . . . . . 1 Weapon Failures 2 | . . . . . 2 Overload Shots . | . . . . . . Overflow Damage 56 | . 5 . . . 51 Projectiles 5 | . 5 . . . . Explosions 51 | . . . . . 51 Melee . | . . . . . . Knockbacks 13 | . . . 3 3 7 Impact . | . . . . . . Kinetic 12 | . . . 2 3 7 Secondary 1 | . . . 1 . . Self-Inflicted Damage 155 | . . . . . 155 Shots 5 | . . . . . 5 Rammed . | . . . . . . Targets Rammed 5 | . 1 2 . 2 . Kicked 5 | . 1 2 . 2 . Crushed . | . . . . . . Highest Temperature 623 | . 120 160 80 78 623 Average Temperature 117 | . 48 79 30 36 159 Received Heat Transfer 606 | . 120 . . . 486 Effects 28 | . . . . . 28 Shutdowns 6 | . . . . . 6 Energy Bleed 1 | . . . . . 1 Interference 7 | . . . . . 7 Matter Decay 1 | . . . . . 1 Damage (minor) 2 | . . . . . 2 Damage (major) 7 | . . . . . 7 Damage (core) 4 | . . . . . 4 Siege Activations . | . . . . . . Robots Corrupted . | . . . . . . Combat Hostiles . | . . . . . . Parts Fried 1 | . . . . . 1 Impact Corruptions . | . . . . . . Robots Melted . | . . . . . . Combat Hostiles . | . . . . . . Parts Melted . | . . . . . . Heat Transferred 1521 | . 409 74 . . 1038 Parts Sabotaged . | . . . . . . Parts Stolen . | . . . . . . Parts Stripped . | . . . . . . Power Chain Reactions 3 | . 1 . . . 2 Alert | -11 -10 -10 -10 -9 -8 ------- Run | Yrd Mat Min Exi Min Mat Peak Influence 508 | . 257 87 . 59 508 Initial 22 | . . 22 . . . Average 94 | . 134 25 . 6 244 Maximum Alert Level 2 | . 1 . . . 2 Low Security (%) 80 | 100 61 100 . 100 49 Level 1 12 | . 38 . . . 27 Level 2 6 | . . . . . 23 Level 3 . | . . . . . . Level 4 . | . . . . . . Level 5 . | . . . . . . High Security . | . . . . . . Max Security . | . . . . . . Squads Dispatched 12 | . 2 . . . 10 Investigation 1 | . . . . . 1 Extermination . | . . . . . . Reinforcement 5 | . 2 . . . 3 Assault . | . . . . . . Garrison 6 | . . . . . 6 Intercept . | . . . . . . Searches Triggered . | . . . . . . Construction Impeded 2 | . . . . . 2 Haulers Reinforced . | . . . . . . Active Scanning Responses . | . . . . . . Cargo Convoy Interrupts . | . . . . . . Stealth | -11 -10 -10 -10 -9 -8 --------- Run | Yrd Mat Min Exi Min Mat Distress Signals 5 | . 1 . . 3 1 Communications Jammed . | . . . . . . Distress Signals . | . . . . . . Times Spotted 56 | . 11 3 . 11 31 Peak Tracking Total 8 | . 3 3 . 8 5 Tactical Retreats 2 | . . 1 . . 1 Traps | -11 -10 -10 -10 -9 -8 ------- Run | Yrd Mat Min Exi Min Mat Traps Triggered . | . . . . . . Indirectly . | . . . . . . Trap Hack Attempts . | . . . . . . Triggered . | . . . . . . Disarmed . | . . . . . . Reprogrammed . | . . . . . . Reused 1 | . . . . . 1 Traps Extracted . | . . . . . . Installed 1 | . . . . . 1 Triggered 1 | . . . . . 1 Most Traps Carried 2 | . . 2 2 2 1 Machines | -11 -10 -10 -10 -9 -8 ---------- Run | Yrd Mat Min Exi Min Mat Machines Disabled 5 | . 1 . . . 4 Max in Single Turn 1 | . 1 . . . 1 Machines Repaired . | . . . . . . Machines Dismantled . | . . . . . . Machines Sabotaged . | . . . . . . Overloaded Fab Kills . | . . . . . . Hacking | -11 -10 -10 -10 -9 -8 --------- Run | Yrd Mat Min Exi Min Mat Machines Accessed 10 | . 3 1 1 . 5 Terminals 6 | . 3 . . . 3 Fabricators . | . . . . . . Repair Stations 1 | . . . . . 1 Recycling Units . | . . . . . . Scanalyzers . | . . . . . . Garrison Access 1 | . . . . . 1 Total Hacks 25 | . 5 1 4 . 15 Successful 17 | . 4 1 4 . 8 Failed 8 | . 1 . . . 7 Catastrophic . | . . . . . . Database Lockouts . | . . . . . . Manual 10 | . 4 . . . 6 Terminals 11 | . 5 . . . 6 Fabricators . | . . . . . . Repair Stations 6 | . . . . . 6 Recycling Units . | . . . . . . Scanalyzers . | . . . . . . Garrison Access 3 | . . . . . 3 Terminal Hacks 6 | . 1 1 4 . . Record 5 | . 1 . 4 . . Open Door 1 | . . 1 . . . Fabricator Hacks . | . . . . . . Repair Station Hacks 5 | . . . . . 5 Scan Component 3 | . . . . . 3 Repair 2 | . . . . . 2 Recycling Unit Hacks . | . . . . . . Scanalyzer . | . . . . . . Garrison Access Hacks 1 | . . . . . 1 Coupler Status 1 | . . . . . 1 Unauthorized Hacks 5 | . 3 . . . 2 Terminals 5 | . 3 . . . 2 Assimilate 1 | . . . . . 1 Botnet 4 | . 3 . . . 1 Fabricators . | . . . . . . Repair Stations . | . . . . . . Recycling Units . | . . . . . . Scanalyzers . | . . . . . . Garrison Access . | . . . . . . Data Cores Recovered . | . . . . . . Used . | . . . . . . Hacking Detections 6 | . 1 . . . 5 Full Trace Events 1 | . . . . . 1 Feedback Events . | . . . . . . Feedback Blocked . | . . . . . . Robot Schematics Acquired . | . . . . . . Robots Built . | . . . . . . Authchips . | . . . . . . Time . | . . . . . . Total Robot Build Rating . | . . . . . . Part Schematics Acquired . | . . . . . . Parts Built . | . . . . . . Authchips . | . . . . . . Time . | . . . . . . Total Part Build Rating . | . . . . . . Parts Repaired 2 | . . . . . 2 Time 64 | . . . . . 64 Parts Recycled . | . . . . . . Recycled Matter . | . . . . . . Retrieved Matter . | . . . . . . Retrieved Components . | . . . . . . Parts Scanalyzed . | . . . . . . Part Schematics Acquired . | . . . . . . Parts Damaged . | . . . . . . Bothacking | -11 -10 -10 -10 -9 -8 ------------ Run | Yrd Mat Min Exi Min Mat Used RIF Installer . | . . . . . . Robots Hacked . | . . . . . . Non-combat . | . . . . . . Combat . | . . . . . . Robot Hacks Applied . | . . . . . . Relay Couplers Released . | . . . . . . Fabnet Peak Effective % . | . . . . . . Robots Rewired . | . . . . . . Allies Hacked . | . . . . . . Hacks Repelled . | . . . . . . Allies | -11 -10 -10 -10 -9 -8 -------- Run | Yrd Mat Min Exi Min Mat Total Allies 4 | . . 3 . . 1 Largest Group 3 | . . 3 3 3 1 Highest-Rated Group 40 | . . 40 40 40 10 Highest-Rated Ally 16 | . . 16 16 16 10 Total Orders 9 | . . 4 2 1 2 STAY 5 | . . 3 1 . 1 ROAM 1 | . . . . . 1 FOLLOW 2 | . . 1 1 . . GUARD 1 | . . . . 1 . Ally Attacks 15 | . . . . 15 . Total Damage 163 | . . . . 163 . Kills 2 | . . . . 2 . Allies Corrupted . | . . . . . . Allies Melted . | . . . . . . Intel | -11 -10 -10 -10 -9 -8 ------- Run | Yrd Mat Min Exi Min Mat Robot Analysis Total . | . . . . . . Derelict Logs Recovered 2 | . . 1 . 1 . Drone Launches . | . . . . . . Drone Recoveries . | . . . . . . Exploration | -11 -10 -10 -10 -9 -8 ------------- Run | Yrd Mat Min Exi Min Mat Turns Passed 4915 | 76 498 1025 1371 982 963 Spaces Moved 2617 | 54 302 671 704 489 397 Core 4 | 4 . . . . . Treads 5 | 5 . . . . . Legs 2608 | 45 302 671 704 489 397 Wheels . | . . . . . . Hover . | . . . . . . Flight . | . . . . . . Fastest Speed 50 | 50 120 120 190 190 122 Average Speed 166 | 118 120 149 190 190 166 Slowest Speed 340 | 160 120 190 190 330 340 Overloaded Moves . | . . . . . . Propulsion Burnouts . | . . . . . . Robots Hopped . | . . . . . . Cave-ins Triggered 1 | . . . . . 1 Exploration Rate (%) 57 | 3 49 96 89 87 20 Regions Visited 5 Branch Regions 3 Pre-discovered Areas 2 | . . . 1 1 . Known Exits Taken 3 | . . 1 1 1 . Unknown Exits Taken 2 | 1 1 . . . . Scrap Searched 3 | . . 1 . 2 . Spaces Dug . | . . . . . . Terrain Destroyed 200 | . 6 . . 33 161 Melee . | . . . . . . Projectile 15 | . . . . . 15 AOE 185 | . 6 . . 33 146 Terrain Rammed . | . . . . . . Walls Destroyed . | . . . . . . Machines Disabled . | . . . . . . Actions | -11 -10 -10 -10 -9 -8 --------- Run | Yrd Mat Min Exi Min Mat Total 2870 | 63 366 687 721 513 520 Wait . | . . . . . . Move 2612 | 53 301 670 703 488 397 Hop . | . . . . . . Pick Up 26 | 2 7 3 2 3 9 Fast Attach 15 | 7 2 1 . 1 4 Attach 9 | . . 1 . . 8 Detach 1 | . . . . . 1 Swap 12 | . 5 1 1 2 3 Drop 19 | 1 6 5 1 2 4 Fire 166 | . 44 4 10 15 93 Melee . | . . . . . . Ram . | . . . . . . Kick 5 | . 1 2 . 2 . Crush . | . . . . . . Escape Stasis . | . . . . . . Rewire 4 | . . . 4 . . Trap 1 | . . . . . 1 Miscellaneous . | . . . . . . Route ------- -11/Scrapyard -10/Materials (discovered 2 exits: *Mat / *Min) -10/Mines (discovered 3 exits: *Mat x2 / *Exi) -10/Exiles (discovered 2 exits: *Min x2) -9/Mines (discovered 2 exits: *Mat x2) -8/Materials History --------- Turn | Location | Event 11 | -11/Scrapyard | Discovered new exit (range 14) 77 | -11/Scrapyard | Entered Materials 244 | -10/Materials | Discovered new exit (range 6) 506 | -10/Materials | Discovered new exit (range 6) 575 | -10/Materials | Entered Mines 599 | -10/Mines | Found a hidden stash of uninstalled traps 644 | -10/Mines | Learned Materials security intel 734 | -10/Mines | Assisted by bots powering up and referring to "LRC-V3" 834 | -10/Mines | Build established: Mutant 907 | -10/Mines | Discovered new exit (range 15) 945 | -10/Mines | Identified exit to Materials 1045 | -10/Mines | Met a Derelict who couldn't figure out how to use a Trap Extractor 1123 | -10/Mines | A weapon hastily lodged in a ceiling crevice suddenly fell to the ground 1123 | -10/Mines | Discovered exit to Materials (range 13) 1587 | -10/Mines | Deemed a non-threat by the Exiles lab entrance 1589 | -10/Mines | Discovered new exit (range 5) 1596 | -10/Mines | Identified exit to Exiles 1600 | -10/Mines | Entered Exiles 1600 | -10/Exiles | Found Exiles lab destroyed 1600 | -10/Exiles | Accompanied by 3 allies 1648 | -10/Exiles | Discovered new exit (range 15) 1827 | -10/Exiles | Learned location of Zion (-6) 1941 | -10/Exiles | Discovered new exit (range 14) 1962 | -10/Exiles | Identified exit to Mines 2971 | -10/Exiles | Entered Mines 2971 | -9/Mines | Accompanied by 3 allies 2988 | -9/Mines | Met a Derelict bent on vengeance 3159 | -9/Mines | Assembled infested the area 3164 | -9/Mines | Assisted by a Guerilla fighting off Assembled 3225 | -9/Mines | Lost 5 allies 3830 | -9/Mines | Discovered new exit (range 15) 3856 | -9/Mines | Identified exit to Materials 3936 | -9/Mines | Discovered exit to Materials (range 9) 3953 | -9/Mines | Entered Materials 3953 | -8/Materials | Evolved 4 slots: Propulsion x2, Utility x1, Weapon x1 4055 | -8/Materials | Repaired Aluminum Leg 4135 | -8/Materials | Garrison activated, responded to threat 4163 | -8/Materials | Core integrity fell below 50% 4495 | -8/Materials | Repaired Titanium Leg 4524 | -8/Materials | Build established: Skirmisher 4567 | -8/Materials | Garrison activated, responded to threat 4704 | -8/Materials | Crushed by falling debris 4704 | -8/Materials | Core integrity fell below 20% 4735 | -8/Materials | Lost 3 parts (1n2w) 4916 | -8/Materials | Destroyed by G-47 Trooper with Particle Gun Last Messages --------------- 04831_ U-05 Engineer builds a Wall. 04835_ U-05 Engineer lays Concrete. 04857_ System corrupted: Energy discharge (-53). 04857_ ALERT: Suspicious intruders detected, dispatching Specialist reinforcements to area. 04864_ Connecting with Terminal... 04878_ Dropped Heavy Explosive Trap. 04878_ Installed Heavy Explosive Trap. 04884_ System corrupted: Component data lost. 04890_ Aluminum Leg destroyed. 04905_ Terminal disabled. 04905_ Destroyed Imp. Heat Sink. 04906_ Critical hit (Burn: +37). 04907_ IDX&H4DLFIK0ZYU6%SOUZWYDU=YYGPENHY 04908_ Mni. Grenade Launcher destroyed. 04910_ System corrupted: Lgt. Assault Rifle jammed. 04911_ Penetrated by Slug. 04912_ Critical hit (Burn: +37). 04913_ The unstable cave ceiling collapses. Map ----- +----------------------------------------------------+ | | | | | | | | | | | | | | | | | | | | | ?????????????????????############ # ## # #?? | | ????????????????? ?? # ##? | | ?????????????????????# # ##? | | ?????????????? ??????# """ " " ## | | ??????????? ? ???????# !! """ "G" # | | ?????????????????????# !! """ " # | | ??????????#??????????# !! # # | | ?????????????????????# # # # # ## | | ??????????????#??????######x## ## # # | | ???????????????????????# = # ## | | ?????????????????? ????# #? | | ??????????H????????#???# ##? | | ????????????????"? ??#?# ## # # ##? | | ?????????????????? ????# ########## # ###### | | ???????????????? ??????# #?#?# #% # | | ???? ???????????????#??# @ #?#?# # # ! | | ???????????????????#??# #?## + # ! | | ???????????????????#??## #??# # # ! | | ????????????????#???? g ##?# "T" # ###+#### | | ??????#?# ######## #??# """ %#/ ### ##?? | | ????????# ^ g #?#########% # ### | | ??? % " #### ## # % | | ??? + ""## /# % | | ???? ### ##### Y"## # ### | | ????##### ????####### # ######??# ""## % #?#? | | ?????????????#??????####??#####?# %## #??? | | ??????????????????????????# ###/### #### | | ????????????????????#?##### # | | ???????????????????????#! = # | | ??????????????????????#! =!% !* # | | ??????????????????????#! ####### != # | | ??????????????????????#! ### ##?######==""" + | | ??????????????????????#!? ??#??????#??# """ # | | ???????????????????????? ?#? ?###???##! """ # | | ???????????????????????????????######## !! # | | ?????????????????????#?###??#??# # [! # | | ?????????????????????????##????# # """ #### | | ???????????????????????##?##??## + """ #??? | | ???????????????????????#?#?#? ## ! # """ #### | | ????????????????????????#??#? ## # #??# | +----------------------------------------------------+ Best States ------------- Heat Dissipation 31 Energy Generation 12 Energy Capacity 265 Matter Stores 300 Matter Capacity 300 Sight Range 16 Terrain Scan Range 18 Terrain Scan Density 10 Evasion (%) 55 Targeting Accuracy 5 Recoil Reduction 1 Item Schematics ----------------- None Robot Schematics ------------------ None Fabricated ------------ Nothing Alien Tech Used ----------------- None Achievements -------------- I Survived The Infestation Challenges ------------ None Game ------ Seed NeutronMultitargetingClaws Manual? 0 Play Time 00:38:05 Cumulative 21.2 hours Start 2024.07.07 @ 11:12:00 End 2024.07.07 @ 12:02:12 Sessions 1 Manual Loads 0 Difficulty Rogue Special Mode None Game No. 29 Rogue 29 Adventurer 0 Explorer 0 Win Type - Total 0 Types 0/0/0/0/0/0/0/0/0 Lore% 14 Gallery% 22 Achievement% 19 Wizard Run 0 Options --------- Layout 1 ASCII 0 Keyboard 0 Movement Arrows Keybinds 0 Fullscreen 2 Font 24/Smallcaps Map View 50x35 Zoom Use 0% Tactical HUD 1 Map Filters NONE Filters NONE Steam 1 RUN: 3cbae72e-c9c1-4ed8-9c9f-a0684f47325d